bitfinex/quotes_SOLUSD_20241215
["timestamp","ask_amount","ask_price","bid_price","bid_amount"]
[1734261729225,23.776884,218.13,218.02,1.6292]
[1734261729417,0.68768372,218.12,218.03,5.40044632]
[1734261729624,0.68768372,218.12,218.04,5.40044632]
[1734261729834,0.68768372,218.12,218.03,5.40100319]
[1734261730139,0.68768372,218.12,218.02,1.6292]
[1734261730327,0.68768372,218.12,218.03,5.52669244]
[1734261730649,0.68768372,218.12,218.03,0.25098]
[1734261732303,0.68768372,218.12,218.03,5.6513277]
[1734261732950,0.68768372,218.12,218.03,2.08550737]
[1734261733451,0.68768372,218.12,218.03,5.65112874]
[1734261733823,0.68768372,218.12,218.03,0.25098]
[1734261735626,0.68768372,218.12,218.02,7.02871613]
[1734261735627,20.0,218.08,218.02,1.6292]
[1734261735848,24.46456772,218.07,218.0,0.45688073]
[1734261736135,20.0,218.01,218.0,0.45688073]
[1734261736328,20.68768372,218.01,218.0,0.45688073]
[1734261739623,23.776884,217.96,217.84,12.56815503]
[1734261739823,20.0,217.93,217.84,12.56815503]
[1734261740136,23.776884,217.87,217.84,6.23365503]
[1734261740338,43.776884,217.85,217.84,6.23365503]
[1734261741036,20.0,217.85,217.84,6.23365503]
[1734261741221,43.776884,217.85,217.84,6.23365503]
[1734261742230,33.75668345,217.84,217.83,0.5710958]
[1734261742433,33.75668345,217.84,217.69,7.8869]
[1734261742434,23.776884,217.8,217.69,7.8869]
[1734261742639,0.68768372,217.79,217.69,7.8869]
[1734261743145,0.68768372,217.79,217.64,1.5524]
[1734261743338,23.776884,217.78,217.64,1.5524]
[1734261743530,23.776884,217.76,217.65,0.12549]
[1734261743727,23.776884,217.76,217.64,1.5524]
[1734261743728,0.68768372,217.75,217.64,1.5524]
[1734261744118,0.68768372,217.75,217.65,20.0]
[1734261745132,0.68768372,217.75,217.66,0.12549]
[1734261745443,0.68768372,217.75,217.66,0.25098]
[1734261745630,24.46456772,217.8,217.66,0.25098]
[1734261749849,24.46456772,217.8,217.66,0.93992348]
[1734261750147,24.46456772,217.8,217.71,0.12549]
[1734261750148,0.68768372,217.8,217.71,0.12549]
[1734261750355,0.68768372,217.85,217.72,0.12549]
[1734261751251,0.68768372,217.85,217.71,0.93976822]
[1734261751443,0.68768372,217.85,217.74,6.61098]
[1734261751750,0.68768372,217.89,217.76,0.25098]
[1734261751953,0.68768372,217.89,217.78,0.25098]
[1734261752338,0.68768372,217.89,217.78,0.12549]
[1734261752647,0.68768372,217.9,217.78,0.12549]
[1734261753044,20.0,217.88,217.78,0.12549]
[1734261753247,0.68768372,217.87,217.76,0.12549]
[1734261764945,23.776884,217.91,217.78,0.25098]
[1734261765140,0.68768372,217.9,217.78,0.25098]
[1734261765564,0.68768372,217.9,217.8,0.25098]
[1734261766069,0.68768372,217.91,217.8,0.25098]
[1734261773666,23.776884,217.9,217.79,1.6173]
[1734261773863,0.68768372,217.89,217.79,1.6173]
[1734261774466,20.0,217.87,217.79,1.6173]
[1734261774761,0.68768372,217.86,217.79,1.6173]
[1734261777264,23.776884,217.85,217.79,1.6173]
[1734261777471,0.68768372,217.84,217.79,1.6173]
[1734261779371,0.68768372,217.84,217.75,5.38714173]
[1734261779372,0.68768372,217.84,217.76,1.83699966]
[1734261779575,0.68768372,217.84,217.74,7.927]
[1734261779766,0.68768372,217.84,217.75,5.38715073]
[1734261779973,0.68768372,217.84,217.76,1.83700211]
[1734261780168,0.68768372,217.84,217.74,7.927]
[1734261780379,0.68768372,217.84,217.75,5.3920066]
[1734261780688,0.68768372,217.84,217.76,5.3920066]
[1734261780880,0.68768372,217.84,217.77,1.8370003]
[1734261781080,0.68768372,217.84,217.74,7.927]
[1734261781382,0.68768372,217.84,217.75,5.39416918]
[1734261781556,0.68768372,217.84,217.76,5.39416918]
[1734261781761,0.68768372,217.84,217.77,1.83701121]
[1734261781976,0.68768372,217.84,217.74,7.927]
[1734261782271,0.68768372,217.84,217.75,5.39446327]
[1734261782474,23.776884,217.83,217.76,1.83700992]
[1734261782683,0.68768372,217.82,217.74,1.567]
[1734261782865,23.776884,217.81,217.74,1.567]
[1734261783065,20.68768372,217.8,217.75,1.83722008]
[1734261783260,33.46378928,217.87,217.76,1.83709395]
[1734261783261,20.0,217.84,217.76,1.83709395]
[1734261783570,0.68768372,217.83,217.74,1.567]
[1734261783760,0.68768372,217.83,217.75,5.40046229]
[1734261783962,0.68768372,217.83,217.76,5.40046229]
[1734261784163,0.68768372,217.85,217.77,1.83711027]
[1734261784381,0.68768372,217.85,217.75,0.12549]
[1734261784586,0.68768372,217.85,217.76,5.40369878]
[1734261784759,0.68768372,217.85,217.77,5.40369878]
[1734261784960,0.68768372,217.85,217.78,1.83703087]
[1734261785164,0.68768372,217.85,217.75,0.25098]
[1734261785391,0.68768372,217.85,217.76,5.40373078]
[1734261785596,23.776884,217.84,217.77,5.40373078]
[1734261785896,20.0,217.77,217.71,3.56760803]
[1734261786101,0.68768372,217.76,217.63,0.12549]
[1734261786264,0.68768372,217.76,217.65,0.12549]
[1734261786596,0.68768372,217.76,217.66,3.46915209]
[1734261786769,0.68768372,217.76,217.67,3.46915209]
[1734261786963,0.68768372,217.76,217.62,8.29948407]
[1734261787288,0.68768372,217.76,217.63,3.46966315]
[1734261787493,0.68768372,217.76,217.65,0.12549]
[1734261787790,0.68768372,217.76,217.66,3.46966315]
[1734261787962,0.68768372,217.76,217.67,3.46966315]
[1734261788169,0.68768372,217.76,217.65,0.12549]
[1734261788170,0.68768372,217.76,217.68,3.46966315]
[1734261788370,0.68768372,217.76,217.64,0.12549]
[1734261788570,0.68768372,217.76,217.66,0.25098]
[1734261788875,0.68768372,217.76,217.67,3.4683643]
[1734261789078,0.68768372,217.76,217.66,0.12549]
[1734261789389,0.68768372,217.76,217.67,3.46852109]
[1734261789592,0.68768372,217.76,217.64,0.25098]
[1734261789794,0.68768372,217.76,217.66,0.25098]
[1734261790679,0.68768372,217.76,217.64,0.25098]
[1734261790887,0.68768372,217.76,217.66,0.25098]
[1734261791894,0.68768372,217.76,217.66,3.71985133]
[1734261792093,0.68768372,217.76,217.66,0.25098]
[1734261794787,0.68768372,217.76,217.67,7.5898]
[1734261794996,0.68768372,217.84,217.72,0.12549]
[1734261795188,0.68768372,217.89,217.73,0.12549]
[1734261796182,23.776884,217.88,217.73,0.12549]
[1734261796382,0.68768372,217.87,217.73,0.12549]
[1734261796584,20.0,217.85,217.75,0.25098]
[1734261796798,0.68768372,217.84,217.75,0.25098]
[1734261797581,0.68768372,217.84,217.74,0.25098]
[1734261797782,0.68768372,217.87,217.76,0.25098]
[1734261797997,0.68768372,217.87,217.78,0.12549]
[1734261798206,0.68768372,217.93,217.78,0.25098]
[1734261798396,0.68768372,217.93,217.8,0.12549]
[1734261798595,0.68768372,217.93,217.8,0.25098]
[1734261799104,20.0,217.91,217.8,0.25098]
[1734261799310,0.68768372,217.9,217.8,0.25098]
[1734261799496,19.46892359,217.95,217.8,0.25098]
[1734261799497,0.68768372,217.94,217.8,0.25098]
[1734261800692,23.776884,217.93,217.8,0.25098]
[1734261800897,0.68768372,217.92,217.8,0.25098]
[1734261801582,20.0,217.9,217.8,0.25098]
[1734261801824,0.68768372,217.89,217.8,0.25098]
[1734261802914,20.68768372,217.92,217.8,0.93948609]
[1734261803088,0.68768372,217.91,217.8,0.93948609]
[1734261803286,33.16900701,218.0,217.8,0.93948609]
[1734261803287,0.68768372,217.93,217.8,0.93948609]
[1734261804083,0.68768372,217.93,217.8,0.25098]
[1734261804288,23.776884,217.93,217.8,0.25098]
[1734261804505,20.0,217.9,217.8,0.25098]
[1734261804809,0.68768372,217.89,217.8,0.25098]
[1734261809293,0.68768372,217.89,217.79,1.6226]
[1734261810402,19.78768372,217.9,217.79,1.6226]
[1734261810608,23.776884,217.89,217.79,1.6226]
[1734261812503,20.0,217.86,217.79,1.6226]
[1734261813213,23.776884,217.85,217.79,1.6226]
[1734261813397,23.776884,217.85,217.73,1.5059]
[1734261818609,20.0,217.82,217.73,1.5059]
[1734261826221,20.0,217.82,217.74,0.25098]
[1734261827544,20.0,217.83,217.74,0.25098]
[1734261828153,20.0,217.88,217.74,0.25098]
[1734261828448,23.776884,217.89,217.74,0.25098]
[1734261828819,7.04225175,217.92,217.74,0.25098]
[1734261829034,1.84676784,217.92,217.76,0.25098]
[1734261829344,7.04225175,217.93,217.76,0.25098]
[1734261829529,20.0,217.91,217.76,0.25098]
[1734261830120,20.0,217.87,217.76,0.25098]
[1734261836611,20.0,217.87,217.75,1.543]
[1734261836612,23.776884,217.86,217.75,1.543]
[1734261837627,20.0,217.89,217.76,0.25098]
[1734261838153,20.0,217.9,217.76,0.25098]
[1734261838325,23.776884,217.89,217.76,0.25098]
[1734261838533,20.0,217.86,217.76,0.25098]
[1734261839328,20.0,217.86,217.76,3.70875056]
[1734261840225,20.0,217.86,217.76,3.71230691]
[1734261840619,20.0,217.86,217.76,0.25098]
[1734261840814,20.0,217.86,217.76,3.71219719]
[1734261841019,20.0,217.86,217.76,0.25098]
[1734261842830,20.0,217.86,217.76,3.71219719]
[1734261845422,20.0,217.86,217.76,3.71244945]
[1734261847126,20.0,217.86,217.76,0.25098]
[1734261848660,20.0,217.86,217.76,3.46292488]
[1734261848958,20.0,217.85,217.75,1.543]
[1734261850132,20.0,217.86,217.75,1.543]
[1734261852939,20.0,217.85,217.75,1.543]
[1734261857148,20.0,217.86,217.76,3.46754211]
[1734261857347,20.0,217.85,217.75,1.543]
[1734261857663,20.0,217.85,217.76,3.46790346]
[1734261857860,20.0,217.85,217.75,1.543]
[1734261858066,23.776884,217.84,217.75,1.543]
[1734261869845,20.0,217.83,217.76,0.25098]
[1734261870246,20.0,217.83,217.77,3.46972458]
[1734261870448,20.0,217.85,217.76,0.25098]
[1734261870653,20.0,217.85,217.77,3.47003132]
[1734261870849,20.0,217.85,217.76,0.25098]
[1734261871063,20.0,217.85,217.77,3.46998607]
[1734261871367,20.0,217.85,217.78,3.46998607]
[1734261871556,20.0,217.85,217.76,0.25098]
[1734261871754,20.0,217.85,217.77,3.47018979]
[1734261871973,20.0,217.85,217.78,3.47018979]
[1734261872273,20.0,217.85,217.76,0.25098]
[1734261872494,20.0,217.85,217.77,3.47039376]
[1734261872653,20.0,217.85,217.78,3.47039376]
[1734261872850,20.0,217.85,217.76,0.25098]
[1734261873069,20.0,217.85,217.77,3.47039376]
[1734261873259,20.0,217.84,217.76,0.25098]
[1734261873465,20.0,217.84,217.77,3.47053753]
[1734261873785,20.0,217.84,217.76,0.25098]
[1734261873954,20.0,217.84,217.77,3.47053753]
[1734261874149,20.0,217.84,217.76,0.25098]
[1734261874465,20.0,217.84,217.77,3.47070424]
[1734261874677,20.0,217.84,217.76,0.25098]
[1734261874991,20.0,217.84,217.77,3.47070843]
[1734261875193,20.0,217.84,217.76,0.25098]
[1734261875481,20.0,217.85,217.77,3.47083717]
[1734261875683,20.0,217.85,217.78,3.47083717]
[1734261875862,20.0,217.85,217.76,0.25098]
[1734261876180,20.0,217.85,217.77,3.47082598]
[1734261876346,20.0,217.85,217.78,3.47082598]
[1734261876547,20.0,217.85,217.76,0.25098]
[1734261876776,20.0,217.85,217.77,3.4708983]
[1734261876981,20.0,217.85,217.78,3.4708983]
[1734261877280,20.0,217.85,217.76,0.25098]
[1734261877483,20.0,217.85,217.77,3.47087979]
[1734261877774,20.0,217.85,217.78,3.47087979]
[1734261877958,20.0,217.85,217.76,0.25098]
[1734261878162,20.0,217.84,217.77,3.47087979]
[1734261878368,20.0,217.84,217.78,3.47087979]
[1734261878562,20.0,217.84,217.76,0.25098]
[1734261878760,20.0,217.84,217.77,3.47090806]
[1734261878951,20.0,217.84,217.78,3.47090806]
[1734261879291,20.0,217.84,217.76,0.25098]
[1734261879491,20.0,217.85,217.77,3.47094057]
[1734261879688,20.0,217.85,217.78,3.47094057]
[1734261879855,20.0,217.85,217.76,0.25098]
[1734261880052,20.0,217.84,217.77,3.47081495]
[1734261880252,20.0,217.84,217.78,3.47081495]
[1734261880453,20.0,217.84,217.76,0.25098]
[1734261880682,20.0,217.84,217.77,3.47082894]
[1734261880977,20.0,217.84,217.78,3.47082894]
[1734261881156,20.0,217.84,217.76,0.25098]
[1734261881464,20.0,217.84,217.75,1.543]
[1734261881852,20.0,217.84,217.76,3.47115222]
[1734261882056,20.0,217.84,217.75,1.543]
[1734261882271,20.0,217.84,217.76,3.47115152]
[1734261882446,20.0,217.84,217.75,1.543]
[1734261882646,20.0,217.84,217.76,3.47119371]
[1734261882852,20.0,217.84,217.75,1.543]
[1734261883078,20.0,217.84,217.76,3.47119371]
[1734261883283,20.0,217.84,217.75,1.543]
[1734261883582,20.0,217.84,217.76,3.47115306]
[1734261883889,20.0,217.84,217.75,1.543]
[1734261884056,20.0,217.84,217.76,3.47115376]
[1734261884261,20.0,217.84,217.75,1.543]
[1734261884461,20.0,217.84,217.76,3.47122667]
[1734261884676,20.0,217.84,217.75,1.543]
[1734261884974,20.0,217.84,217.76,3.47122737]
[1734261885186,20.0,217.84,217.75,1.543]
[1734261885364,20.0,217.84,217.76,3.4712208]
[1734261885569,20.0,217.84,217.75,1.543]
[1734261885775,20.0,217.84,217.76,3.4712208]
[1734261886083,20.0,217.84,217.75,1.543]
[1734261886283,20.0,217.84,217.76,3.47121713]
[1734261886587,20.0,217.84,217.75,1.543]
[1734261887974,20.0,217.84,217.76,3.47111553]
[1734261888172,20.0,217.84,217.75,1.543]
[1734261888375,20.0,217.84,217.76,3.47123647]
[1734261888572,20.0,217.84,217.75,1.543]
[1734261888771,20.0,217.84,217.76,3.47123647]
[1734261889087,20.0,217.84,217.75,1.543]
[1734261889584,7.04225175,217.83,217.75,1.543]
[1734261890477,27.04225175,217.84,217.75,1.543]
[1734261890681,20.0,217.84,217.75,1.543]
[1734261891495,20.0,217.84,217.76,3.47127771]
[1734261891694,20.0,217.84,217.75,1.543]
[1734261891867,20.0,217.84,217.76,3.47127771]
[1734261892068,20.0,217.84,217.75,1.543]
[1734261892370,20.0,217.84,217.76,3.47137425]
[1734261892572,20.0,217.84,217.76,0.12549]
[1734261892776,20.0,217.84,217.76,0.25098]
[1734261893489,20.0,217.84,217.77,3.47128208]
[1734261893694,20.0,217.84,217.76,0.25098]
[1734261893993,20.0,217.84,217.77,3.47123988]
[1734261894183,20.0,217.84,217.76,0.25098]
[1734261894792,20.0,217.84,217.77,3.47127862]
[1734261894991,20.0,217.84,217.76,0.25098]
[1734261895192,20.0,217.84,217.77,3.47100411]
[1734261895494,20.0,217.84,217.76,0.25098]
[1734261895669,20.0,217.84,217.77,3.47097279]
[1734261895871,20.0,217.84,217.76,0.25098]
[1734261896070,20.0,217.84,217.77,3.47099257]
[1734261896374,20.0,217.84,217.78,3.47081744]
[1734261896582,20.0,217.84,217.76,0.25098]
[1734261896885,20.0,217.84,217.77,3.47075464]
[1734261897187,20.0,217.84,217.76,0.25098]
[1734261897188,20.0,217.84,217.78,3.47075464]
[1734261897407,20.0,217.84,217.76,0.25098]
[1734261897585,20.0,217.84,217.77,3.470627]
[1734261897892,20.0,217.84,217.78,3.4706277]
[1734261898068,20.0,217.84,217.76,0.25098]
[1734261898270,20.0,217.84,217.77,3.47075994]
[1734261898476,20.0,217.84,217.76,0.25098]
[1734261898681,20.0,217.84,217.77,3.47075786]
[1734261898881,20.0,217.84,217.76,0.25098]
[1734261899083,20.0,217.84,217.77,3.47075786]
[1734261899278,20.0,217.84,217.76,0.25098]
[1734261899473,20.0,217.84,217.77,3.47065987]
[1734261899673,20.0,217.84,217.76,0.25098]
[1734261899874,20.0,217.84,217.77,3.47065916]
[1734261900075,20.0,217.84,217.78,3.47065916]
[1734261900275,20.0,217.84,217.76,0.25098]
[1734261900475,20.0,217.84,217.77,3.47050283]
[1734261900684,20.0,217.84,217.76,0.25098]
[1734261900888,20.0,217.84,217.77,3.47050213]
[1734261901075,20.0,217.84,217.76,0.25098]
[1734261901279,20.0,217.84,217.77,3.4706046]
[1734261901475,20.0,217.84,217.76,0.25098]
[1734261901668,20.0,217.84,217.77,3.47047608]
[1734261901868,7.04225175,217.87,217.79,0.25098]
[1734261902115,7.04225175,217.89,217.79,0.25098]
[1734261902470,7.04225175,217.91,217.81,0.25098]
[1734261902985,7.04225175,217.91,217.81,0.12549]
[1734261903395,7.04225175,217.92,217.83,0.25098]
[1734261904068,7.04225175,217.92,217.82,0.25098]
[1734261904297,7.04225175,217.92,217.82,0.12549]
[1734261904685,20.0,217.89,217.8,0.12549]
[1734261904889,20.0,217.89,217.82,0.25098]
[1734261905281,20.0,217.9,217.82,0.25098]
[1734261905625,20.0,217.9,217.8,0.25098]
[1734261905811,20.0,217.9,217.82,0.25098]
[1734261906410,20.0,217.9,217.82,0.12549]
[1734261906709,20.0,217.9,217.81,0.25098]
[1734261907331,20.0,217.89,217.81,0.12549]
[1734261907487,20.0,217.89,217.78,3.4654556]
[1734261907819,20.0,217.87,217.77,3.4654556]
[1734261907991,20.0,217.86,217.76,0.12549]
[1734261908191,20.0,217.86,217.78,0.12549]
[1734261908611,20.0,217.86,217.77,0.12549]
[1734261909836,20.0,217.86,217.76,0.25098]
[1734261910924,20.0,217.85,217.76,0.25098]
[1734261911102,20.0,217.84,217.76,0.25098]
[1734261912426,20.0,217.84,217.75,1.543]
[1734261914103,20.0,217.84,217.76,0.25098]
[1734261914319,20.0,217.85,217.76,0.25098]
[1734261918006,20.0,217.84,217.76,0.25098]
[1734261918628,20.0,217.85,217.76,0.25098]
[1734261920044,20.0,217.84,217.76,0.25098]
[1734261923724,20.0,217.84,217.75,1.543]
[1734261924936,20.0,217.84,217.76,0.25098]
[1734261925148,20.0,217.85,217.76,0.25098]
[1734261926732,20.0,217.85,217.75,1.543]
[1734261926733,20.0,217.84,217.75,1.543]
[1734261927726,20.0,217.84,217.7,0.12549]
[1734261927925,20.0,217.83,217.72,0.12549]
[1734261928141,20.0,217.82,217.73,3.46673528]
[1734261928338,20.0,217.82,217.7,0.25098]
[1734261928540,20.0,217.82,217.71,3.46682737]
[1734261928739,20.0,217.82,217.72,3.71780737]
[1734261928976,20.0,217.82,217.74,0.25098]
[1734261929677,20.0,217.82,217.72,0.25098]
[1734261929980,20.0,217.82,217.74,0.25098]
[1734261930579,20.0,217.82,217.74,0.12549]
[1734261930759,20.0,217.82,217.73,0.25098]
[1734261931284,20.0,217.83,217.73,0.12549]
[1734261933260,20.0,217.82,217.73,0.12549]
[1734261933462,20.0,217.83,217.73,0.12549]
[1734261934666,20.0,217.83,217.72,0.25098]
[1734261935036,20.0,217.83,217.74,0.25098]
[1734261935261,7.04225175,217.87,217.76,0.12549]
[1734261935465,7.04225175,217.89,217.76,0.25098]
[1734261935673,28.16900701,217.92,217.76,0.25098]
[1734261935674,7.04225175,217.91,217.78,0.25098]
[1734261935881,7.04225175,217.91,217.8,0.25098]
[1734261936082,7.04225175,217.93,217.8,0.25098]
[1734261936286,7.04225175,217.93,217.83,0.12549]
[1734261936456,7.04225175,217.94,217.83,0.12549]
[1734261937766,20.0,217.91,217.83,0.12549]
[1734261938350,7.04225175,217.94,217.84,0.12549]
[1734261938549,6.284,217.97,217.84,0.12549]
[1734261938550,7.04225175,217.95,217.84,0.12549]
[1734261938746,7.04225175,217.98,217.85,0.12549]
[1734261938990,7.04225175,217.98,217.86,0.12549]
[1734261939686,7.04225175,217.99,217.86,0.12549]
[1734261940351,23.776884,217.99,217.86,0.12549]
[1734261940688,20.0,217.96,217.86,0.12549]
[1734261942476,20.0,217.97,217.86,0.12549]
[1734261943355,21.59023065,218.02,217.86,0.12549]
[1734261943356,20.0,217.98,217.86,0.12549]
[1734261944693,20.0,217.98,217.87,0.12549]
[1734261945583,20.0,217.98,217.89,0.25098]
[1734261946085,20.0,217.99,217.89,0.25098]
[1734261946859,5.0,218.07,217.89,0.25098]
[1734261946860,7.04225175,218.06,217.91,0.25098]
[1734261947075,3.587434,218.05,217.95,0.12549]
[1734261947292,3.587434,218.05,217.95,0.25098]
[1734261947585,13.32625175,218.08,217.95,0.25098]
[1734261947789,6.284,218.08,217.95,0.25098]
[1734261948093,20.0,218.05,217.95,0.25098]
[1734261948469,7.04225175,218.1,217.97,0.12549]
[1734261948671,7.04225175,218.11,217.97,0.25098]
[1734261949375,17.1586114,218.13,217.97,0.25098]
[1734261949961,20.0,218.1,217.97,0.25098]
[1734261950478,10.11635965,218.13,217.99,0.25098]
[1734261951573,20.0,218.09,217.99,0.25098]
[1734261953996,23.776884,218.08,217.98,6.5794]
[1734261954198,20.0,218.05,217.98,6.5794]
[1734261954366,20.0,218.05,217.99,0.12549]
[1734261954566,20.0,218.09,217.99,0.12549]
[1734261955493,20.0,218.09,217.99,0.25098]
[1734261958567,20.0,218.09,217.99,3.25098]
[1734261962806,20.0,218.09,217.99,6.25098]
[1734261966891,20.0,218.09,217.99,5.750978]
[1734261967098,20.0,218.09,217.99,7.750978]
[1734261967282,20.0,218.09,218.0,1.5163]
[1734261976704,20.0,218.09,218.01,0.25098]
[1734261982506,1.81486262,218.14,218.01,0.25098]
[1734261982692,20.0,218.1,218.01,0.25098]
[1734261983086,20.0,218.15,218.01,0.25098]
[1734261986012,20.0,218.12,218.03,0.25098]
[1734261986605,20.0,218.13,218.03,0.25098]
[1734261994119,20.0,218.12,218.02,1.6218]
[1734261994326,20.0,218.11,218.02,1.6218]
[1734261994505,20.0,218.1,218.02,1.6218]
[1734261994708,20.0,218.09,218.02,1.6218]
[1734261995530,20.0,218.08,218.02,1.6218]
[1734261997439,20.0,218.07,218.02,1.6218]
[1734262001317,19.0,218.07,218.02,1.6218]
[1734262004444,7.04225175,218.09,218.02,1.6218]
[1734262004648,7.04225175,218.11,218.02,1.6218]
[1734262005262,20.0,218.09,218.03,0.25098]
[1734262005427,7.04225175,218.12,218.03,0.25098]
[1734262005753,7.04225175,218.14,218.03,0.25098]
[1734262006551,7.04225175,218.14,218.05,0.25098]
[1734262006733,7.04225175,218.14,218.07,0.25098]
[1734262006938,14.0845035,218.16,218.07,0.25098]
[1734262006939,7.04225175,218.16,218.07,0.25098]
[1734262007831,7.04225175,218.17,218.07,0.25098]
[1734262008248,7.04225175,218.17,218.09,0.25098]
[1734262008453,1.79914493,218.18,218.11,0.25098]
[1734262008657,7.04225175,218.19,218.11,0.25098]
[1734262009152,8.92638549,218.19,218.11,0.25098]
[1734262009331,1.88413374,218.19,218.11,0.25098]
[1734262009529,7.04225175,218.2,218.11,0.25098]
[1734262009928,7.04225175,218.19,218.1,1.6514]
[1734262010335,7.04225175,218.18,218.1,1.6514]
[1734262013353,20.0,218.15,218.1,1.6514]
[1734262013566,20.0,218.13,218.1,1.6514]
[1734262016340,20.0,218.14,218.1,1.6514]
[1734262018158,7.04225175,218.17,218.1,1.6514]
[1734262018340,20.0,218.15,218.1,1.6514]
[1734262018941,7.04225175,218.18,218.1,1.6514]
[1734262019142,20.0,218.15,218.1,1.6514]
[1734262021344,20.0,218.16,218.1,1.6514]
[1734262021760,20.0,218.15,218.1,1.6514]
[1734262022464,20.0,218.16,218.1,1.6514]
[1734262023946,20.0,218.17,218.1,1.6514]
[1734262024267,20.0,218.16,218.1,1.6514]
[1734262024846,7.04225175,218.21,218.11,0.25098]
[1734262025041,20.0,218.18,218.11,0.25098]
[1734262025864,20.0,218.17,218.1,1.6514]
[1734262029453,20.0,218.18,218.11,0.25098]
[1734262031468,20.0,218.19,218.11,6.44918]
[1734262034778,20.0,218.18,218.11,6.1982]
[1734262035462,20.0,218.17,218.11,6.1982]
[1734262036258,20.0,218.19,218.11,6.1982]
[1734262037660,20.0,218.18,218.11,6.1982]
[1734262039366,20.0,218.19,218.11,6.1982]
[1734262040379,20.0,218.19,218.12,0.25098]
[1734262041166,8.83924314,218.22,218.12,0.25098]
[1734262041378,1.79699139,218.22,218.14,0.25098]
[1734262041680,7.04225175,218.27,218.14,0.25098]
[1734262041884,32.66648475,218.3,218.16,0.25098]
[1734262041885,7.04225175,218.28,218.16,0.25098]
[1734262042062,7.04225175,218.29,218.16,0.25098]
[1734262042382,92.24016862,218.33,218.16,0.25098]
[1734262042383,7.04225175,218.31,218.18,0.25098]
[1734262042695,26.48013018,218.33,218.2,0.25098]
[1734262042696,7.04225175,218.32,218.2,0.25098]
[1734262042982,14.0845035,218.33,218.2,0.25098]
[1734262042983,7.04225175,218.33,218.2,0.25098]
[1734262043161,7.04225175,218.34,218.2,0.25098]
[1734262043363,57.97941403,218.41,218.2,0.25098]
[1734262043364,7.04225175,218.35,218.2,0.25098]
[1734262043586,7.04225175,218.36,218.2,0.25098]
[1734262044375,8.8873925,218.37,218.2,0.25098]
[1734262044685,20.0,218.33,218.2,0.25098]
[1734262045186,20.0,218.29,218.2,0.25098]
[1734262045400,20.0,218.29,218.19,6.2992]
[1734262045683,23.776884,218.28,218.19,6.2992]
[1734262045883,20.0,218.25,218.19,6.2992]
[1734262049595,20.0,218.25,218.17,1.6192]
[1734262050584,23.776884,218.24,218.17,1.6192]
[1734262050783,20.0,218.21,218.17,1.6192]
[1734262051283,23.776884,218.24,218.12,1.505]
[1734262051484,23.776884,218.2,218.12,1.505]
[1734262051689,20.0,218.17,218.12,1.505]
[1734262057388,23.776884,218.25,218.12,1.505]
[1734262057593,20.0,218.22,218.12,1.505]
[1734262068289,20.0,218.22,218.13,0.25098]
[1734262079659,20.0,218.25,218.13,0.25098]
[1734262081057,20.0,218.21,218.13,0.25098]
[1734262081929,20.0,218.21,218.12,1.505]
[1734262082143,23.776884,218.2,218.12,1.505]
[1734262083923,20.0,218.17,218.12,1.505]
[1734262085526,20.0,218.22,218.12,1.505]
[1734262087667,18.65553834,218.27,218.12,1.505]
[1734262087668,20.0,218.23,218.12,1.505]
[1734262090174,20.0,218.19,218.12,1.505]
[1734262092447,20.0,218.15,218.07,1.6023]
[1734262096883,20.0,218.16,218.08,0.25098]